Cogmind - Beta 15 @@@ ROGUE MODE // 2025.08.13 @ 09:13:57 Player: beans Result: Destroyed by G-47 Trooper with Particle Gun Performance ------------- Evolutions (2) 1000 Regions Visited (7) 1400 Robots Destroyed (61) 305 Value Destroyed (1244) 1244 Prototype IDs (26) 520 Alien Tech Used (0) 0 Bonus (300) 300 TOTAL SCORE: 4769 Bonus ------- Aligned with FarCom 300 Cogmind --------- Core Integrity 0/550 Matter 4/300 Energy 69/100 System Corruption 0% Temperature Cool (36) Movement Core (150) Ox2 Location -8/Materials Parts ------- > --- POWER (2) -------- (None) > --- PROPULSION (3) --- (None) > --- UTILITY (3) ------ (None) > --- WEAPON (3) ------- Minigun Assault Cannon > --- INVENTORY (5) ---- Authchip [Propulsion] Peak State ------------ > --- POWER ------------ Improved Ion Engine > --- PROPULSION ------- Advanced Treads > --- UTILITY ---------- Improved Heat Sink High-capacity Battery Particle Charger > --- WEAPON ----------- Shock Rifle Assault Cannon Bore Cannon > --- INVENTORY -------- Light Nuclear Core Authchip [Propulsion] Flak Cannon Rocket Launcher [Rating: 24] Favorites ----------- Power Improved Ion Engine Engine Improved Ion Engine Power Core Light Nuclear Core Propulsion Light Treads Treads Light Treads Leg Aluminum Leg Flight Unit Improved Flight Unit Utility Improved Heat Sink Device Improved Heat Sink Storage High-capacity Battery Weapon Improved Medium Laser Energy Gun Improved Medium Laser Ballistic Gun Minigun Ballistic Cannon Flak Cannon Launcher Rocket Launcher Build | -11 -10 -10 -9 -9 -9 -8 -8 ------- Run | Yrd Mat Min Mat Min Exi Min Mat Slots Evolved 4 | . . . 2 . . . 2 Power 1 | . . . . . . . 1 Propulsion 1 | . . . 1 . . . . Utility 1 | . . . 1 . . . . Weapon 1 | . . . . . . . 1 Parts Attached 35 | 5 5 . 8 7 1 1 8 Power 7 | 1 1 . 1 2 . . 2 Engine 5 | 1 1 . 1 1 . . 1 Core 2 | . . . . 1 . . 1 Reactor . | . . . . . . . . Propulsion 8 | 2 . . 3 2 . 1 . Treads 3 | 2 . . . . . 1 . Leg 2 | . . . . 2 . . . Wheel . | . . . . . . . . Hover . | . . . . . . . . Flight 3 | . . . 3 . . . . Utility 6 | . 2 . . 2 1 . 1 Device 3 | . 1 . . 1 . . 1 Storage 3 | . 1 . . 1 1 . . Processor . | . . . . . . . . Hackware . | . . . . . . . . Protection . | . . . . . . . . Artifact . | . . . . . . . . Weapon 14 | 2 2 . 4 1 . . 5 Energy Gun 6 | 2 1 . 2 . . . 1 Energy Cannon . | . . . . . . . . Ballistic Gun 1 | . . . . . . . 1 Ballistic Cannon 4 | . . . . 1 . . 3 Launcher 3 | . 1 . 2 . . . . Special Weapon . | . . . . . . . . Impact Weapon . | . . . . . . . . Slashing Weapon . | . . . . . . . . Piercing Weapon . | . . . . . . . . Special Melee Weapon . | . . . . . . . . Unidentified Prototypes 3 | . . . 3 . . . . Parts Lost 18 | . . . 2 4 . . 12 Power 5 | . . . 1 2 . . 2 Propulsion 3 | . . . 1 1 . . 1 Utility 5 | . . . . 1 . . 4 Weapon 5 | . . . . . . . 5 Highest Loss Streak 8 | . . . 1 3 . . 8 To Critical Strikes . | . . . . . . . . Average Backups 4 | . 2 4 4 5 5 5 3 Power . | . . 1 . . . . . Propulsion . | . . . . . . . . Utility 1 | . . 2 1 1 1 1 1 Weapon 2 | . 1 1 2 4 4 4 2 Tool/Special . | . . . . . . . . Unused Backups 2 | . . . 1 . . . 1 Power . | . . . . . . . . Propulsion . | . . . . . . . . Utility 2 | . . . 1 . . . 1 Weapon . | . . . . . . . . Tool/Special . | . . . . . . . . Average Slot Usage (%) 69 | . 81 100 71 62 56 66 54 Engine 6 | . 14 14 10 6 . . 3 Treads 10 | . 28 28 8 . . 7 7 Leg 2 | . . . . 5 11 3 . Flight 3 | . . . 13 13 . . . Device 11 | . 9 14 11 9 11 11 12 Storage 10 | . 3 14 5 5 12 22 9 Energy Gun 19 | . 24 28 20 21 22 22 4 Ballistic Cannon 3 | . . . . . . . 15 Peak Build Rating 24 | 5 10 10 19 20 13 16 24 Average Rating 12 | 3 7 10 11 14 12 14 17 On Entrance 10 | . 5 10 10 16 12 13 15 Naked Turns 3 | . . . . . . . 3 Heaviest Build 35 | 8 14 14 16 23 15 15 35 Greatest Support 40 | 40 40 40 40 20 10 22 22 Greatest Overweight (x) 10 | . . . 3 2 1 1 10 Average Overweight (x) . | . . . . . 1 . . Largest Inventory Capacity 5 | 5 5 5 5 5 5 5 5 Average Capacity 5 | 5 5 5 5 5 5 5 5 Most Carried 5 | 3 4 5 5 5 5 5 5 Average Carried 4 | . 2 4 4 5 5 5 3 Final Capacity 5 | 5 5 5 5 5 5 5 5 Final Carried 5 | . 4 4 5 5 5 5 1 Class Distribution -------------------- 91% | Mutant 8% | Skirmisher Dominant Class ---------------- Mutant | -10/Materials Mutant | -10/Mines Mutant | -9/Materials Mutant | -9/Mines Mutant | -9/Exiles Mutant | -8/Mines Mutant | -8/Materials Resources | -11 -10 -10 -9 -9 -9 -8 -8 ----------- Run | Yrd Mat Min Mat Min Exi Min Mat Matter Collected 1141 | 244 66 . 151 202 . 133 345 Remotely . | . . . . . . . . Salvage Created 2220 | . 83 297 895 317 . 87 541 Parts 106 | . 7 21 28 16 . 5 29 Haulers Intercepted 4 | . 1 . 2 . . . 1 Recyclers Shooed 3 | . . 1 2 . . . . Parts Field Recycled . | . . . . . . . . Retrieved Matter . | . . . . . . . . Parts Self-Destructed . | . . . . . . . . Prevented . | . . . . . . . . Kills | -11 -10 -10 -9 -9 -9 -8 -8 ------- Run | Yrd Mat Min Mat Min Exi Min Mat Combat Hostiles Destroyed 44 | . . 5 11 19 . . 9 Guns 21 | . . 5 5 9 . . 2 Cannons 9 | . . . . 3 . . 6 AOE 11 | . . . 4 6 . . 1 Classes Destroyed 12 | . 4 2 3 1 . . 2 Worker 8 | . 1 2 1 2 . 1 1 Builder 9 | . 1 3 2 2 . . 1 Tunneler 2 | . . 1 . 1 . . . Hauler 4 | . 1 . 2 . . . 1 Recycler 6 | . . . 4 . . 1 1 Watcher 5 | . 1 . 3 . . . 1 Swarmer 4 | . . . 4 . . . . Grunt 14 | . . 5 5 2 . . 2 Sentry 5 | . . . 2 . . . 3 Specialist 2 | . . . . . . . 2 Hunter 2 | . . . . . . . 2 Assembled 17 | . . . . 17 . . . Best Kill Streak 12 | . 2 6 12 12 . 1 4 Combat Bots Only 12 | . . 5 7 12 . . 3 Max Kills in Single Turn 4 | . 1 2 4 2 . 1 1 Gunslinging 1 | . . 1 . 1 . . . Exploded 4 | . . . 4 2 . . 1 Melee . | . . . . . . . . Uniques/NPCs Destroyed . | . . . . . . . . Combat | -11 -10 -10 -9 -9 -9 -8 -8 -------- Run | Yrd Mat Min Mat Min Exi Min Mat Hostile Shots Fired 207 | . . 25 43 44 . . 95 Missed 71 | . . 9 15 18 . . 29 Hits 136 | . . 16 28 26 . . 66 Melee 3 | . . . . 3 . . . Projectile 133 | . . 16 28 23 . . 66 Critical Strikes 3 | . . . . . . . 3 Damage Taken 2370 | . . 174 333 457 . . 1406 Core 772 | . . 11 53 148 . . 560 Absorbed by Shields . | . . . . . . . . Core Remaining (%) 81 | 100 . 95 . . . 49 . Volleys Fired 291 | . 39 13 78 44 29 15 73 Largest 3 | . 2 2 2 2 2 2 3 Hottest 135 | . 100 100 112 112 112 112 135 Shots Fired 535 | . 61 26 156 83 57 30 122 Gun 432 | . 61 26 150 70 57 30 38 Cannon 83 | . . . . 6 . . 77 Launcher 20 | . . . 6 7 . . 7 Special . | . . . . . . . . Kinetic 83 | . . . . 6 . . 77 Thermal 403 | . 61 26 150 70 57 30 9 Explosive 15 | . . . 1 7 . . 7 Electromagnetic 34 | . . . 5 . . . 29 Robot Hit Streak 12 | . 6 10 12 10 . 2 5 Robot Miss Streak 8 | . 2 1 5 4 . 3 8 Penetration Max 1 | . . . . . . . 1 Secondary Targets 5 | . . 3 . 2 . . . Max Gunslinging Chain 1 | . . 1 . 1 . . . Shots Hit Robots 211 | . 12 20 89 36 . 3 51 Core Hits 134 | . 5 14 37 33 . 2 43 Critical Kills 3 | . . . . 1 . . 2 Critical Parts Destroyed 3 | . . . . . . . 3 Critical Strikes 27 | . 2 4 12 4 . . 5 Burn 21 | . 2 4 12 3 . . . Destroy 6 | . . . . 1 . . 5 Melee Attacks . | . . . . . . . . Impact . | . . . . . . . . Slashing . | . . . . . . . . Piercing . | . . . . . . . . Sneak Attacks . | . . . . . . . . Combat Hostiles . | . . . . . . . . Follow-up Attacks . | . . . . . . . . Damage Inflicted 4163 | . 143 264 1414 1185 . 52 1105 Guns 2445 | . 143 264 1165 524 . 52 297 Cannons 681 | . . . . 54 . . 627 Explosions 1037 | . . . 249 607 . . 181 Melee . | . . . . . . . . Ramming . | . . . . . . . . Kinetic 681 | . . . . 54 . . 627 Thermal 2216 | . 143 264 1165 524 . 52 68 Explosive 976 | . . . 188 607 . . 181 Electromagnetic 290 | . . . 61 . . . 229 Impact . | . . . . . . . . Slashing . | . . . . . . . . Piercing . | . . . . . . . . Highest Corruption 2 | . . . . 2 2 2 . Average Corruption 2 | . . . . 2 2 2 . Corruption Purged . | . . . . . . . . Corruption Blocked . | . . . . . . . . Effects 15 | . . . . 3 8 4 . Message Errors 4 | . . . . 2 2 . . Matter Fused 4 | . . . . . 4 . . Heat Flow Errors 1 | . . . . . . 1 . Energy Discharges 3 | . . . . . 1 2 . Data Loss (minor) 2 | . . . . 1 . 1 . Weapon Failures 1 | . . . . . 1 . . Overload Shots . | . . . . . . . . Overflow Damage 31 | . . . 20 11 . . . Projectiles . | . . . . . . . . Explosions 31 | . . . 20 11 . . . Melee . | . . . . . . . . Knockbacks 10 | . . . . . . . 10 Impact . | . . . . . . . . Kinetic 10 | . . . . . . . 10 Secondary . | . . . . . . . . Self-Inflicted Damage 64 | . . . 16 38 . . 10 Shots 4 | . . . 1 2 . . 1 Rammed . | . . . . . . . . Targets Rammed . | . . . . . . . . Kicked . | . . . . . . . . Crushed . | . . . . . . . . Highest Temperature 252 | . 36 14 3 197 . 76 252 Average Temperature 92 | . 18 7 3 104 . 55 111 Received Heat Transfer 480 | . . 96 126 33 . . 225 Effects 1 | . . . . . . . 1 Interference 1 | . . . . . . . 1 Siege Activations . | . . . . . . . . Martial Activations . | . . . . . . . . Shielding Activations . | . . . . . . . . Robots Disrupted . | . . . . . . . . Combat Hostiles . | . . . . . . . . Robots Corrupted 1 | . . . . . . . 1 Combat Hostiles . | . . . . . . . . Parts Fried . | . . . . . . . . Impact Corruptions . | . . . . . . . . Robots Melted 3 | . . . 2 1 . . . Combat Hostiles 3 | . . . 2 1 . . . Parts Melted 20 | . 1 2 16 1 . . . Heat Transferred 7512 | . 556 1073 4255 1369 . 111 148 Parts Sabotaged . | . . . . . . . . Parts Stolen . | . . . . . . . . Parts Stripped . | . . . . . . . . Power Chain Reactions 1 | . . . 1 . . . . Alert | -11 -10 -10 -9 -9 -9 -8 -8 ------- Run | Yrd Mat Min Mat Min Exi Min Mat Maximum Alert Level . | . . . . . . . . Low Security (%) 100 | 100 100 100 100 100 . 100 100 Level 1 . | . . . . . . . . Level 2 . | . . . . . . . . Level 3 . | . . . . . . . . Level 4 . | . . . . . . . . Level 5 . | . . . . . . . . High Security . | . . . . . . . . Max Security . | . . . . . . . . Peak Influence 193 | . 7 92 193 83 . 15 98 Initial 63 | . . . 31 63 . . . Average 27 | . . 5 141 17 . . 23 Influence Increases 1096 | . 24 130 374 128 . 25 415 Destroy 0b10 Robot/C 540 | . . 100 220 40 . . 180 Destroy 0b10 Robot/NC 170 | . 20 30 60 25 . 10 25 Destroy Leader 158 | . 4 . 70 10 . . 74 Disable Machine 60 | . . . 15 . . 15 30 Destroy Structure 108 | . . . 9 53 . . 46 Lose Combat Pursuer 60 | . . . . . . . 60 Influence Decreases 1062 | . 24 47 294 291 . 25 381 Entered New Map 152 | . . . 52 100 . . . Time Decay 762 | . 24 47 222 154 . 25 290 Lost Part 121 | . . . 20 10 . . 91 Lost Ally 27 | . . . . 27 . . . Squads Dispatched 7 | . . . 3 . . . 4 Investigation . | . . . . . . . . Extermination . | . . . . . . . . Reinforcement 7 | . . . 3 . . . 4 Assault . | . . . . . . . . Garrison . | . . . . . . . . Intercept . | . . . . . . . . Searches Triggered . | . . . . . . . . Construction Impeded 1 | . . . 1 . . . . Haulers Reinforced . | . . . . . . . . Active Scanning Responses . | . . . . . . . . Cargo Convoy Interrupts . | . . . . . . . . Stealth | -11 -10 -10 -9 -9 -9 -8 -8 --------- Run | Yrd Mat Min Mat Min Exi Min Mat Distress Signals 5 | . . 1 2 . . . 2 Communications Jammed . | . . . . . . . . Distress Signals . | . . . . . . . . Times Spotted 77 | . 2 5 26 22 . . 22 Peak Tracking Total 6 | . 1 5 5 6 . . 4 Tactical Retreats 3 | . . . . . . . 3 Traps | -11 -10 -10 -9 -9 -9 -8 -8 ------- Run | Yrd Mat Min Mat Min Exi Min Mat Traps Triggered . | . . . . . . . . Indirectly . | . . . . . . . . Trap Hack Attempts . | . . . . . . . . Triggered . | . . . . . . . . Disarmed . | . . . . . . . . Reprogrammed . | . . . . . . . . Reused . | . . . . . . . . Traps Extracted . | . . . . . . . . Installed . | . . . . . . . . Triggered . | . . . . . . . . Machines | -11 -10 -10 -9 -9 -9 -8 -8 ---------- Run | Yrd Mat Min Mat Min Exi Min Mat Machines Disabled 4 | . . . 1 . . 1 2 Max in Single Turn 1 | . . . 1 . . 1 1 Machines Repaired . | . . . . . . . . Machines Dismantled . | . . . . . . . . Machines Sabotaged . | . . . . . . . . Overloaded Fab Kills . | . . . . . . . . Hacking | -11 -10 -10 -9 -9 -9 -8 -8 --------- Run | Yrd Mat Min Mat Min Exi Min Mat Machines Accessed 1 | . . . . . 1 . . Terminals . | . . . . . . . . Fabricators . | . . . . . . . . Repair Stations . | . . . . . . . . Recycling Units . | . . . . . . . . Scanalyzers . | . . . . . . . . Garrison Access . | . . . . . . . . Total Hacks 1 | . . . . . 1 . . Successful 1 | . . . . . 1 . . Failed . | . . . . . . . . Catastrophic . | . . . . . . . . Database Lockouts . | . . . . . . . . Manual 1 | . . . . . 1 . . Terminals . | . . . . . . . . Fabricators . | . . . . . . . . Repair Stations . | . . . . . . . . Recycling Units . | . . . . . . . . Scanalyzers . | . . . . . . . . Garrison Access . | . . . . . . . . Terminal Hacks 1 | . . . . . 1 . . Proto ID Catalog 1 | . . . . . 1 . . Fabricator Hacks . | . . . . . . . . Repair Station Hacks . | . . . . . . . . Recycling Unit Hacks . | . . . . . . . . Scanalyzer . | . . . . . . . . Garrison Access Hacks . | . . . . . . . . Unauthorized Hacks . | . . . . . . . . Terminals . | . . . . . . . . Fabricators . | . . . . . . . . Repair Stations . | . . . . . . . . Recycling Units . | . . . . . . . . Scanalyzers . | . . . . . . . . Garrison Access . | . . . . . . . . Data Cores Recovered . | . . . . . . . . Used . | . . . . . . . . Hacking Detections . | . . . . . . . . Full Trace Events . | . . . . . . . . Feedback Events . | . . . . . . . . Feedback Blocked . | . . . . . . . . Robot Schematics Acquired . | . . . . . . . . Robots Built . | . . . . . . . . Authchips . | . . . . . . . . Time . | . . . . . . . . Total Robot Build Rating . | . . . . . . . . Part Schematics Acquired . | . . . . . . . . Parts Built . | . . . . . . . . Authchips . | . . . . . . . . Time . | . . . . . . . . Total Part Build Rating . | . . . . . . . . Parts Repaired . | . . . . . . . . Time . | . . . . . . . . Parts Recycled . | . . . . . . . . Recycled Matter . | . . . . . . . . Retrieved Matter . | . . . . . . . . Retrieved Components . | . . . . . . . . Parts Scanalyzed . | . . . . . . . . Part Schematics Acquired . | . . . . . . . . Parts Damaged . | . . . . . . . . Bothacking | -11 -10 -10 -9 -9 -9 -8 -8 ------------ Run | Yrd Mat Min Mat Min Exi Min Mat Used RIF Installer . | . . . . . . . . Robots Hacked . | . . . . . . . . Non-combat . | . . . . . . . . Combat . | . . . . . . . . Robot Hacks Applied . | . . . . . . . . Relay Couplers Released . | . . . . . . . . Fabnet Peak Effective % . | . . . . . . . . Robots Rewired . | . . . . . . . . Allies Hacked . | . . . . . . . . Hacks Repelled . | . . . . . . . . Allies | -11 -10 -10 -9 -9 -9 -8 -8 -------- Run | Yrd Mat Min Mat Min Exi Min Mat Total Allies 3 | . . . . 3 . . . Largest Group 3 | . . . . 3 . . . Highest-Rated Group 40 | . . . . 40 . . . Highest-Rated Ally 16 | . . . . 16 . . . Total Orders . | . . . . . . . . Ally Attacks 30 | . . . . 30 . . . Total Damage 215 | . . . . 215 . . . Kills 3 | . . . . 3 . . . Allies Corrupted . | . . . . . . . . Allies Melted . | . . . . . . . . Intel | -11 -10 -10 -9 -9 -9 -8 -8 ------- Run | Yrd Mat Min Mat Min Exi Min Mat Active Infowar (turns) . | . . . . . . . . Robot Analysis Total . | . . . . . . . . Derelict Logs Recovered 2 | . . 1 . 1 . . . Drone Launches . | . . . . . . . . Drone Recoveries . | . . . . . . . . Exploration | -11 -10 -10 -9 -9 -9 -8 -8 ------------- Run | Yrd Mat Min Mat Min Exi Min Mat Turns Passed 4542 | 65 358 813 469 747 598 532 960 Spaces Moved 2052 | 39 144 282 210 451 246 308 372 Core 26 | 6 . . 2 . . . 18 Treads 1088 | 33 144 282 55 . . 220 354 Legs 481 | . . . . 147 246 88 . Wheels . | . . . . . . . . Hover . | . . . . . . . . Flight 457 | . . . 153 304 . . . Fastest Speed 34 | 50 160 160 34 107 190 145 50 Average Speed 156 | 143 160 160 96 125 190 157 203 Slowest Speed 550 | 160 160 160 200 190 190 190 550 Overloaded Moves . | . . . . . . . . Propulsion Burnouts . | . . . . . . . . Robots Hopped 1 | . . . 1 . . . . Potential Cave-ins . | . . . . . . . . Cave-ins Triggered . | . . . . . . . . Exploration Rate (%) 44 | 4 23 61 18 81 61 72 39 Regions Visited 7 Branch Regions 4 Pre-discovered Areas 2 | . . 1 . 1 . . . Known Exits Taken . | . . . . . . . . Unknown Exits Taken 7 | 1 1 1 1 1 1 1 . Scrap Searched 3 | . . . . 2 . 1 . Spaces Dug 22 | . . . . 21 . . 1 Terrain Destroyed 115 | . . . 7 60 . . 48 Melee . | . . . . . . . . Projectile 23 | . . . . 2 . . 21 AOE 92 | . . . 7 58 . . 27 Terrain Rammed . | . . . . . . . . Walls Destroyed . | . . . . . . . . Machines Disabled . | . . . . . . . . Actions | -11 -10 -10 -9 -9 -9 -8 -8 --------- Run | Yrd Mat Min Mat Min Exi Min Mat Total 2849 | 48 210 618 320 543 319 324 467 Wait 413 | . 13 322 4 30 44 . . Move 2043 | 38 143 281 207 450 245 307 372 Hop 1 | . . . 1 . . . . Pick Up 27 | 5 7 1 8 1 . . 5 Fast Attach 10 | . . . 1 6 1 1 1 Attach 25 | 5 3 . 6 . . . 11 Detach 5 | . 1 . 2 . . . 2 Swap 18 | . 3 . 6 8 . . 1 Drop 16 | . 1 1 7 4 . 1 2 Fire 291 | . 39 13 78 44 29 15 73 Melee . | . . . . . . . . Ram . | . . . . . . . . Kick . | . . . . . . . . Crush . | . . . . . . . . Escape Stasis . | . . . . . . . . Rewire . | . . . . . . . . Trap . | . . . . . . . . Miscellaneous . | . . . . . . . . Route ------- -11/Scrapyard -10/Materials (discovered 2 exits: [*Min] / [*Sub]) -10/Mines -9/Materials -9/Mines (discovered 2 exits: [*Mat] / *Exi) -9/Exiles -8/Mines -8/Materials (discovered 1 exit: [*Fac]) History --------- Turn | Location | Event 6 | -11/Scrapyard | Discovered new exit (range 15) 66 | -11/Scrapyard | Entered Materials 223 | -10/Materials | Discovered new exit (range 9) 261 | -10/Materials | Discovered new exit (range 12) 308 | -10/Materials | Build established: Mutant 424 | -10/Materials | Entered Mines 431 | -10/Mines | Received a Rocket Launcher from a helpful Derelict 495 | -10/Mines | Found a hidden stash of uninstalled traps 509 | -10/Mines | Learned location of Zion (-6) 862 | -10/Mines | Excavation squad dispatched 862 | -10/Mines | A large section of the Mines collapsed 1112 | -10/Mines | Excavation squad dispatched 1227 | -10/Mines | Discovered new exit (range 3) 1237 | -10/Mines | Entered Materials 1237 | -9/Materials | Evolved 2 slots: Propulsion x1, Utility x1 1378 | -9/Materials | Destroyed 7 combat bots 1602 | -9/Materials | Discovered new exit (range 15) 1706 | -9/Materials | Entered Mines 1840 | -9/Mines | Assisted by bots powering up and referring to "LRC-V3" 1894 | -9/Mines | Discovered new exit (range 8) 1896 | -9/Mines | A weapon hastily lodged in a ceiling crevice suddenly fell to the ground 1932 | -9/Mines | YI-UF0 nonchalantly dropped a Grenade Launcher on the ground 2002 | -9/Mines | Assembled infested the area 2159 | -9/Mines | Destroyed 12 combat bots 2204 | -9/Mines | Core integrity fell below 50% 2238 | -9/Mines | Lost 3 parts (1p1n1u) 2446 | -9/Mines | Deemed a non-threat by the Exiles lab entrance 2446 | -9/Mines | Discovered new exit (range 5) 2453 | -9/Mines | Entered Exiles 2499 | -9/Exiles | Met 8R-AWN 2531 | -9/Exiles | Met EX-HEX 2586 | -9/Exiles | Met EX-BIN 2615 | -9/Exiles | Aligned with FarCom system 2617 | -9/Exiles | Given EX-Vault access code 2668 | -9/Exiles | Opened EX-Vault 2840 | -9/Exiles | Warned to stay clear of 0b10 Research branches 2897 | -9/Exiles | Met EX-DEC 3029 | -9/Exiles | Discovered new exit (range 14) 3051 | -9/Exiles | Entered Mines 3560 | -8/Mines | Discovered new exit (range 13) 3583 | -8/Mines | Entered Materials 3583 | -8/Materials | Evolved 2 slots: Power x1, Weapon x1 4052 | -8/Materials | Discovered new exit (range 8) 4509 | -8/Materials | Core integrity fell below 50% 4517 | -8/Materials | Core integrity fell below 20% 4543 | -8/Materials | Destroyed by G-47 Trooper with Particle Gun Last Messages --------------- Overheating: System interference. Particle Charger temporarily disabled. Penetrated by Slug. Knocked back. Slug penetrates Wall. H-55 Commando destroyed. Penetrated by Slug. Acquired 3 matter. The unstable cave ceiling collapses. Penetrated by Slug. Acquired 4 matter. Penetrated by Slug. Particle Charger destroyed. Hcp. Battery destroyed. Knocked back. Lgt. Nuclear Core destroyed. Rocket Launcher destroyed. Acquired Minigun. K-01 Serf collects debris. Critical hit (Burn: +37). Map ----- +----------------------------------------------------+ | | | | | | | | | | | | | | | | | | | | | | | | | | | | | | | | | | | ????????????????????#################??########### | | ??????????????????Y?# #??# | | ????????????????????# ##?# | | ????????????????????# ;#?# | | ???#########????????# #??# | | ???# #????????# =![ #??# | | ???# #????????# !! % #??# | | ???# #????????# ! #??# | | ???##### #????????# @ #??# | | ???????# #????????# % ##?# | | ???????# #????????# g % #?# | | ???????# #####+###### g ;##;;############+## | | ???????# %[ | | ???????+ #??###### | | ???????# #???????# | | ???????# #### #???????# k % !* | | ???????# #???? #???????# = | = | | ???????# #????? #???????# #########+#### | | ???????+ #??????+???????# * ##???????????? | | ???????# #??????????????# ! #####????????????? | | ???????# #?????????????# = ????????????????? | | ???????# #????????????? ????????????????? | | ???????# #???????????? * H ????????????????? | | ???????# #??????????? % ????????????????? | | ???????# #??????????? = ?????????????????? | | ???????# #?????????? = ?????????????????? | | ???????# #?????????## ## ???????????????? | | ???????# #??????????# ?# ???????????????? | | ??????## ##?????????? ?###"#"???????????????? "" | | ####### #?????????? #???????????????????????"" | | [ #?????????? #????[ ?????????????????"" | | [% #?????????# #?? ?????????????????#" | | =%!########### # * "??################# | +----------------------------------------------------+ Best States ------------- Heat Dissipation 50 Energy Generation 14 Energy Capacity 515 Matter Stores 340 Matter Capacity 500 Sight Range 16 Terrain Scan Density 10 Evasion (%) 63 Recoil Reduction 2 Particle Charging 15 Authchip Count 2 Item Schematics ----------------- None Robot Schematics ------------------ None Fabricated ------------ Nothing Repaired ---------- Nothing Alien Tech Used ----------------- None Achievements -------------- None Challenges ------------ None Game ------ Seed CorruptionThrusterScrap Manual? 0 Play Time 00:31:16 Cumulative 88.1 hours Start 2025.08.12 @ 21:30:44 End 2025.08.13 @ 09:13:57 Sessions 2 Manual Loads 0 Difficulty Rogue Special Mode None Game No. 345 Rogue 345 Adventurer 0 Explorer 0 Win Type - Total 0 Types 0/0/0/0/0/0/0/0/0/0 Lore% 37 Gallery% 37 Achievement% 30 Wizard Run 0 Options --------- Layout 2 ASCII 0 Keyboard 0 Movement Mouse Keybinds 0 Fullscreen 2 Font 24/Smallcaps Map View 50x44 Zoom Use 0% Tactical HUD 0 Map Filters NONE Filters NONE Steam 1 RUN: 031cd7d0-03b3-4510-b46b-f1e076460113